fUST/lending_fUST_20240229
["ID","MTS","AMOUNT","RATE_DAILY","PERIOD"]
[315748747,1709161841892,-709.97,0.00019452,2]
[315748749,1709161841901,-1962.69,0.00019452,2]
[315748751,1709161841910,-928.35,0.00019452,2]
[315748753,1709161841919,-500.0,0.00019452,2]
[315748755,1709161841928,-4847.94,0.00019452,2]
[315748757,1709161841937,-602.85,0.00019452,2]
[315748759,1709161841947,-35488.405,0.00019482,10]
[315748760,1709161841956,-7560.72187726,0.0001949,2]
[315749174,1709161846108,-500.0,0.00019178,2]
[315749176,1709161846117,-166.666666,0.00019178,2]
[315749178,1709161846126,-500.0,0.00019452,2]
[315749180,1709161846136,-671.30247893,0.0001949,2]
[315749182,1709161846145,-155.15515516,0.00019726,2]
[315749184,1709161846154,-155.15515516,0.00019726,2]
[315749186,1709161846164,-500.0,0.00019726,2]
[315749188,1709161846173,-500.0,0.00019726,2]
[315749190,1709161846181,-500.0,0.00019726,2]
[315749193,1709161846190,-500.0,0.00019726,2]
[315749195,1709161846199,-500.0,0.00019726,2]
[315749198,1709161846208,-584.5,0.00019726,2]
[315749200,1709161846217,-698.8,0.00019726,2]
[315749203,1709161846226,-500.0,0.00019726,2]
[315749206,1709161846235,-853.63,0.00019726,2]
[315749208,1709161846245,-500.0,0.00019726,2]
[315749211,1709161846254,-500.0,0.00019726,2]
[315749214,1709161846263,-588.01,0.00019726,2]
[315749216,1709161846272,-500.0,0.00019726,2]
[315749219,1709161846281,-5141.14,0.00019726,2]
[315749221,1709161846290,-500.0,0.00019726,2]
[315749223,1709161846300,-3300.0,0.00019726,2]
[315749226,1709161846309,-661.73,0.00019726,2]
[315749228,1709161846318,-1100.32,0.00019726,2]
[315749231,1709161846327,-500.0,0.00019726,2]
[315749234,1709161846336,-731.21,0.00019726,2]
[315749236,1709161846345,-500.0,0.00019726,2]
[315749239,1709161846354,-709.97,0.00019726,2]
[315749242,1709161846363,-48.1610066,0.00019726,2]
[315751174,1709162601739,623.2871413,0.0002501,120]
[315751175,1709162710424,10000.0,0.000173,2]
[315751176,1709162727554,10000.0,0.00017,10]
[315751177,1709162747626,10000.0,0.000173,2]
[315751178,1709162756277,10000.0,0.000173,2]
[315751222,1709163032075,-155.08995217,0.00017901,2]
[315751224,1709163032084,-2573.68962548,0.00017902,2]
[315751226,1709163032094,-6245.54450858,0.00017902,2]
[315751228,1709163032105,-7266.09062093,0.00017902,2]
[315751230,1709163032114,-2233.90937923,0.00017903,2]
[315751840,1709163038003,-4670.46630263,0.00017903,2]
[315751842,1709163038015,-1734.05382404,0.00017903,2]
[315751858,1709163038160,-725.68819631,0.000189,2]
[315751859,1709163038170,-169.50945208,0.00019078,2]
[315751860,1709163038180,-2111.64420487,0.00019177,2]
[315751861,1709163038189,-500.0,0.00019178,2]
[315751862,1709163038199,-500.0,0.00019178,2]
[315751863,1709163038210,-500.0,0.00019178,2]
[315751864,1709163038220,-193.73880097,0.00019178,2]
[315751865,1709163038233,-306.26119903,0.00019178,2]
[315751866,1709163038243,-500.56486638,0.00019178,2]
[315751867,1709163038252,-500.0,0.00019178,2]
[315751868,1709163038262,-500.0,0.00019178,2]
[315751869,1709163038272,-500.0,0.00019178,2]
[315751870,1709163038282,-500.0,0.00019178,2]
[315751871,1709163038291,-621.22,0.00019178,2]
[315751872,1709163038301,-500.0,0.00019178,2]
[315751873,1709163038310,-500.0,0.00019178,2]
[315751874,1709163038319,-500.0,0.00019178,2]
[315751875,1709163038328,-500.0,0.00019178,2]
[315751877,1709163038338,-746.92,0.00019178,2]
[315751878,1709163038347,-850.98,0.00019178,2]
[315751880,1709163038356,-4443.94,0.00019178,2]
[315751882,1709163038366,-511.44,0.00019178,2]
[315751884,1709163038375,-500.0,0.00019178,2]
[315751886,1709163038384,-500.0,0.00019178,2]
[315751888,1709163038393,-514.51,0.00019178,2]
[315751890,1709163038402,-500.0,0.00019178,2]
[315751892,1709163038411,-500.0,0.00019178,2]
[315751894,1709163038420,-2887.5,0.00019178,2]
[315751896,1709163038429,-500.0,0.00019178,2]
[315751898,1709163038438,-2623.96229497,0.00019178,2]
[315751901,1709163038458,-1874.53770503,0.00019178,2]
[315751903,1709163038467,-423.2114076,0.00019178,2]
[315752167,1709163041177,-259.69740116,0.00019178,2]
[315752171,1709163041214,-279.87119124,0.00019178,2]
[315752173,1709163041223,-519.7083886,0.00019178,2]
[315752680,1709163046141,-59.3016114,0.00019178,2]
[315752682,1709163046150,-611.45,0.00019178,2]
[315752684,1709163046160,-639.81,0.00019178,2]
[315752686,1709163046169,-500.0,0.00019178,2]
[315752688,1709163046178,-500.0,0.00019178,2]
[315752690,1709163046187,-1797.13,0.00019178,2]
[315752691,1709163046196,-500.0,0.00019178,2]
[315752693,1709163046205,-552.61,0.00019178,2]
[315752695,1709163046217,-500.0,0.00019178,2]
[315752697,1709163046226,-172.303321,0.00019178,2]
[315752699,1709163046235,-5967.09169067,0.00019392,3]
[315752701,1709163046247,-20635.09830933,0.00019392,3]
[315752703,1709163046256,-22168.49,0.00019392,3]
[315752705,1709163046265,-31922.63,0.00019402,3]
[315752707,1709163046275,-6760.55537466,0.0001945,4]
[315752709,1709163046285,-500.0,0.00019452,2]
[315752711,1709163046294,-621.22,0.00019452,2]
[315752713,1709163046305,-500.0,0.00019452,2]
[315752715,1709163046315,-500.0,0.00019452,2]
[315752717,1709163046324,-500.0,0.00019452,2]
[315752719,1709163046334,-500.0,0.00019452,2]
[315752721,1709163046343,-746.92,0.00019452,2]
[315752723,1709163046352,-850.98,0.00019452,2]
[315752724,1709163046362,-4443.94,0.00019452,2]
[315752726,1709163046372,-511.44,0.00019452,2]
[315752728,1709163046381,-500.0,0.00019452,2]
[315752730,1709163046391,-500.0,0.00019452,2]
[315752732,1709163046400,-514.51,0.00019452,2]
[315752734,1709163046410,-500.0,0.00019452,2]
[315752736,1709163046420,-500.0,0.00019452,2]
[315752738,1709163046430,-2887.5,0.00019452,2]
[315752740,1709163046439,-500.0,0.00019452,2]
[315752742,1709163046449,-2936.71631601,0.00019452,2]
[315752744,1709163046461,-1561.78368399,0.00019452,2]
[315752746,1709163046475,-962.78,0.00019452,2]
[315752748,1709163046484,-549.59020162,0.00019452,2]
[315754606,1709163951844,24900.0,0.0001725,2]
[315754712,1709164238145,-155.07909034,0.00017934,2]
[315754714,1709164238155,-1184.04521131,0.00018016,2]
[315754716,1709164238168,-117.51186177,0.00018016,2]
[315754718,1709164238178,-11804.78166899,0.00018016,2]
[315754720,1709164238190,-1706.85346052,0.00018016,2]
[315754722,1709164238200,-15232.41076204,0.00018017,2]
[315754723,1709164238209,-2064.07363031,0.00018035,2]
[315754725,1709164238219,-483.79213087,0.000189,2]
[315754727,1709164238229,-288.67238713,0.00019177,2]
[315754729,1709164238238,-1214.95005945,0.00019177,2]
[315754731,1709164238248,-500.0,0.00019178,2]
[315754732,1709164238258,-500.0,0.00019178,2]
[315754734,1709164238267,-314.33733289,0.00019178,2]
[315754736,1709164238276,-500.0,0.00019178,2]
[315754739,1709164238285,-500.0,0.00019178,2]
[315754742,1709164238294,-331.17941528,0.00019178,2]
[315754744,1709164238303,-502.55102291,0.00019178,2]
[315754746,1709164238312,-503.20960449,0.00019178,2]
[315754748,1709164238322,-305.83772746,0.00019178,2]
[315754750,1709164238331,-500.0,0.00019178,2]
[315754752,1709164238340,-500.0,0.00019178,2]
[315754753,1709164238349,-506.2130211,0.00019178,2]
[315754755,1709164238358,-500.0,0.00019178,2]
[315754757,1709164238367,-500.0,0.00019178,2]
[315754759,1709164238376,-697.1,0.00019178,2]
[315754761,1709164238385,-500.0,0.00019178,2]
[315754762,1709164238393,-500.0,0.00019178,2]
[315754764,1709164238402,-500.0,0.00019178,2]
[315754766,1709164238411,-500.0,0.00019178,2]
[315754767,1709164238420,-500.0,0.00019178,2]
[315754769,1709164238430,-590.59055546,0.00019178,2]
[315754770,1709164238439,-500.59452776,0.00019178,2]
[315754771,1709164238448,-500.0,0.00019178,2]
[315754772,1709164238458,-500.0,0.00019178,2]
[315754773,1709164238467,-503.19472331,0.00019178,2]
[315754775,1709164238476,-500.0,0.00019178,2]
[315754776,1709164238485,-500.0,0.00019178,2]
[315754778,1709164238494,-500.0,0.00019178,2]
[315754780,1709164238503,-500.6742577,0.00019178,2]
[315754782,1709164238512,-500.0,0.00019178,2]
[315754784,1709164238521,-780.07,0.00019178,2]
[315754785,1709164238530,-164.24596392,0.00019178,2]
[315754787,1709164238539,-500.0,0.00019178,2]
[315754789,1709164238548,-500.0,0.00019178,2]
[315754791,1709164238557,-500.0,0.00019178,2]
[315754793,1709164238567,-500.0,0.00019178,2]
[315754795,1709164238576,-4335.38,0.00019178,2]
[315754797,1709164238585,-1722.25,0.00019178,2]
[315754798,1709164238594,-500.0,0.00019178,2]
[315754800,1709164238604,-529.59,0.00019178,2]
[315754802,1709164238612,-144.99461229,0.00019178,2]
[315754804,1709164238624,-357.01778067,0.00019178,2]
[315754806,1709164238633,-500.0,0.00019178,2]
[315754808,1709164238642,-301.93875526,0.00019178,2]
[315754873,1709164246398,-3002.64,0.00019178,2]
[315754939,1709165436151,-159.85982904,0.00017839,2]
[315754941,1709165436160,-155.09926353,0.00017839,2]
[315754943,1709165436170,-208.4654979,0.0001784,2]
[315754945,1709165436180,-4614.43783037,0.00017946,2]
[315755041,1709165438594,-8324.19657951,0.00017946,2]
[315755042,1709165438607,-573.00071963,0.00017946,2]
[315755043,1709165438616,-235.45566406,0.00017947,2]
[315755343,1709165441464,-2717.2135901,0.00017947,2]
[315755534,1709165443359,-21947.33074584,0.00017947,2]
[315755536,1709165443370,-938.7586593,0.00017947,2]
[315755538,1709165443381,-322.52808725,0.000189,2]
[315755540,1709165443391,-856.54,0.00019168,3]
[315755542,1709165443401,-560.647637,0.00019177,2]
[315755544,1709165443411,-1213.00670701,0.00019177,2]
[315755546,1709165443421,-155.08219356,0.00019178,2]
[315755548,1709165443431,-500.0,0.00019178,2]
[315755550,1709165443440,-500.0,0.00019178,2]
[315755552,1709165443450,-311.25723657,0.00019178,2]
[315755554,1709165443460,-437.29176718,0.00019178,2]
[315755556,1709165443476,-500.0,0.00019178,2]
[315755559,1709165443487,-500.0,0.00019178,2]
[315755561,1709165443498,-500.0,0.00019178,2]
[315755562,1709165443511,-500.0,0.00019178,2]
[315755565,1709165443520,-302.638108,0.00019178,2]
[315755567,1709165443529,-500.0,0.00019178,2]
[315755569,1709165443540,-199.18082958,0.00019178,2]
[315755571,1709165443550,-500.0,0.00019178,2]
[315755573,1709165443559,-500.0,0.00019178,2]
[315755575,1709165443568,-501.95643743,0.00019178,2]
[315755577,1709165443576,-571.76017886,0.00019178,2]
[315755579,1709165443588,-500.0,0.00019178,2]
[315755581,1709165443597,-500.0,0.00019178,2]
[315755583,1709165443608,-500.0,0.00019178,2]
[315755585,1709165443618,-500.0,0.00019178,2]
[315755587,1709165443627,-501.29719747,0.00019178,2]
[315755589,1709165443637,-500.0,0.00019178,2]
[315755591,1709165443646,-646.16620991,0.00019178,2]
[315755593,1709165443656,-500.0,0.00019178,2]
[315755595,1709165443666,-500.0,0.00019178,2]
[315755597,1709165443675,-500.0,0.00019178,2]
[315755599,1709165443685,-385.18,0.00019178,2]
[315755601,1709165443694,-500.0,0.00019178,2]
[315755603,1709165443704,-500.0,0.00019178,2]
[315755605,1709165443715,-500.0,0.00019178,2]
[315755606,1709165443724,-500.0,0.00019178,2]
[315755608,1709165443733,-504.21335184,0.00019178,2]
[315755611,1709165443743,-730.16,0.00019178,2]
[315755613,1709165443753,-500.0,0.00019178,2]
[315755615,1709165443763,-500.0,0.00019178,2]
[315755616,1709165443772,-500.0,0.00019178,2]
[315755618,1709165443781,-500.0,0.00019178,2]
[315755620,1709165443793,-500.0,0.00019178,2]
[315755622,1709165443805,-500.0,0.00019178,2]
[315755624,1709165443815,-502.48701273,0.00019178,2]
[315755626,1709165443824,-869.1,0.00019178,2]
[315755628,1709165443833,-500.0,0.00019178,2]
[315755630,1709165443842,-500.0,0.00019178,2]
[315755632,1709165443852,-500.0,0.00019178,2]
[315755634,1709165443861,-500.0,0.00019178,2]
[315755637,1709165443871,-170.26427134,0.00019178,2]
[315755638,1709165443879,-300.0,0.00019178,2]
[315755640,1709165443889,-500.0,0.00019178,2]
[315755642,1709165443898,-500.0,0.00019178,2]
[315755644,1709165443906,-500.0,0.00019178,2]
[315755646,1709165443916,-501.73593943,0.00019178,2]
[315755648,1709165443925,-407.92151327,0.00019178,2]
[315755650,1709165443935,-500.0,0.00019178,2]
[315755652,1709165443944,-500.0,0.00019178,2]
[315755654,1709165443953,-500.0,0.00019178,2]
[315755656,1709165443965,-500.0,0.00019178,2]
[315755659,1709165443975,-500.93234217,0.00019178,2]
[315755661,1709165443984,-500.0,0.00019178,2]
[315755662,1709165443994,-368.06715263,0.00019178,2]
[315755664,1709165444003,-561.96,0.00019178,2]
[315755666,1709165444014,-500.0,0.00019178,2]
[315755668,1709165444025,-500.0,0.00019178,2]
[315755671,1709165444036,-501.59626251,0.00019178,2]
[315755672,1709165444045,-500.0,0.00019178,2]
[315755674,1709165444055,-500.0,0.00019178,2]
[315755677,1709165444066,-500.0,0.00019178,2]
[315755679,1709165444075,-500.0,0.00019178,2]
[315755681,1709165444085,-500.0,0.00019178,2]
[315755682,1709165444094,-834.67,0.00019178,2]
[315755685,1709165444104,-604.17800912,0.00019178,2]
[315755686,1709165444115,-500.0,0.00019178,2]
[315755688,1709165444125,-500.0,0.00019178,2]
[315755690,1709165444135,-500.0,0.00019178,2]
[315755692,1709165444145,-819.06,0.00019178,2]
[315755694,1709165444155,-500.0,0.00019178,2]
[315755697,1709165444167,-500.0,0.00019178,2]
[315755699,1709165444176,-500.71114628,0.00019178,2]
[315755700,1709165444186,-500.0,0.00019178,2]
[315755702,1709165444195,-500.0,0.00019178,2]
[315755704,1709165444204,-292.34688881,0.00019178,2]
[315755706,1709165444215,-500.0,0.00019178,2]
[315755708,1709165444224,-443.86900434,0.00019178,2]
[315755710,1709165444234,-211.14111785,0.00019178,2]
[315755712,1709165444243,-500.0,0.00019178,2]
[315755714,1709165444252,-500.0,0.00019178,2]
[315755716,1709165444261,-500.0,0.00019178,2]
[315755718,1709165444271,-500.0,0.00019178,2]
[315755719,1709165444279,-1765.62141138,0.00019178,2]
[315755941,1709165446426,-4273.30858862,0.00019178,2]
[315755943,1709165446436,-174.56092939,0.00019178,2]
[315755945,1709165446446,-500.0,0.00019178,2]
[315755947,1709165446455,-500.0,0.00019178,2]
[315755949,1709165446466,-500.0,0.00019178,2]
[315755951,1709165446475,-151.0,0.00019178,2]
[315755953,1709165446484,-3757.26,0.00019178,2]
[315755955,1709165446493,-500.0,0.00019178,2]
[315755957,1709165446503,-500.0,0.00019178,2]
[315755959,1709165446518,-500.0,0.00019178,2]
[315755962,1709165446527,-500.0,0.00019178,2]
[315755965,1709165446536,-500.0,0.00019178,2]
[315755968,1709165446546,-500.0,0.00019178,2]
[315755971,1709165446558,-500.0,0.00019178,2]
[315755974,1709165446567,-1336.91,0.00019178,2]
[315755977,1709165446576,-4826.22494435,0.00019178,2]
[315758482,1709166248629,228.0,0.00025,120]
[315758520,1709166632855,-3505.110033,0.00017502,2]
[315758521,1709166632868,-8500.26482754,0.00017502,2]
[315758522,1709166632881,-414.87088482,0.00017502,2]
[315758577,1709166640929,-155.09150399,0.00017501,2]
[315758579,1709166640940,-1091.38938415,0.00017502,2]
[315758581,1709166640951,-7319.0692316,0.00017503,2]
[315758582,1709166640961,-555.15053635,0.00017695,2]
[315758661,1709166641789,-189.19942063,0.00017695,2]
[315758663,1709166641799,-155.09150399,0.00017696,2]
[315758665,1709166641808,-155.09460771,0.00017698,2]
[315758667,1709166641818,-785.7553477,0.00017699,2]
[315758669,1709166641827,-500.0,0.00019178,2]
[315758671,1709166641837,-500.0,0.00019178,2]
[315758673,1709166641847,-500.0,0.00019178,2]
[315758675,1709166641857,-500.0,0.00019178,2]
[315758677,1709166641866,-227.19034493,0.00019178,2]
[315758679,1709166641878,-500.0,0.00019178,2]
[315758682,1709166641887,-500.0,0.00019178,2]
[315758683,1709166641897,-751.23429009,0.00019178,2]
[315758686,1709166641910,-158.09570991,0.00019178,2]
[315758688,1709166641922,-500.0,0.00019178,2]
[315758690,1709166641932,-500.0,0.00019178,2]
[315758692,1709166641941,-155.79313531,0.00019178,2]
[315758694,1709166641953,-500.0,0.00019178,2]
[315758696,1709166641963,-500.0,0.00019178,2]
[315758698,1709166641972,-500.0,0.00019178,2]
[315758700,1709166641981,-500.0,0.00019178,2]
[315758702,1709166641991,-507.0068055,0.00019178,2]
[315758703,1709166642001,-500.0,0.00019178,2]
[315758705,1709166642011,-400.0,0.00019178,2]
[315758707,1709166642021,-500.0,0.00019178,2]
[315758710,1709166642031,-588.61429345,0.00019178,2]
[315758711,1709166642041,-500.0,0.00019178,2]
[315758713,1709166642050,-500.0,0.00019178,2]
[315758716,1709166642060,-500.0,0.00019178,2]
[315758717,1709166642069,-500.63595938,0.00019178,2]
[315758719,1709166642080,-263.75226372,0.00019178,2]
[315758722,1709166642090,-500.0,0.00019178,2]
[315758724,1709166642100,-274.72759022,0.00019178,2]
[315758726,1709166642109,-500.0,0.00019178,2]
[315758727,1709166642118,-699.74,0.00019178,2]
[315758730,1709166642129,-699.74,0.00019178,2]
[315758731,1709166642139,-699.74,0.00019178,2]
[315758733,1709166642148,-502.15746347,0.00019178,2]
[315758735,1709166642158,-500.0,0.00019178,2]
[315758737,1709166642167,-201.80826819,0.00019178,2]
[315758739,1709166642177,-500.0,0.00019178,2]
[315758741,1709166642188,-500.0,0.00019178,2]
[315758743,1709166642198,-500.0,0.00019178,2]
[315758746,1709166642211,-832.89,0.00019178,2]
[315758747,1709166642221,-500.0,0.00019178,2]
[315758749,1709166642231,-500.0,0.00019178,2]
[315758751,1709166642240,-151.0,0.00019178,2]
[315758754,1709166642251,-500.0,0.00019178,2]
[315758755,1709166642260,-500.0,0.00019178,2]
[315758757,1709166642269,-500.0,0.00019178,2]
[315758760,1709166642278,-627.07237057,0.00019178,2]
[315758762,1709166642288,-500.0,0.00019178,2]
[315758764,1709166642297,-500.0,0.00019178,2]
[315758765,1709166642307,-500.0,0.00019178,2]
[315758767,1709166642316,-500.0,0.00019178,2]
[315758769,1709166642325,-500.0,0.00019178,2]
[315758772,1709166642335,-500.49030211,0.00019178,2]
[315758774,1709166642345,-151.0,0.00019178,2]
[315758776,1709166642354,-502.20378943,0.00019178,2]
[315758777,1709166642364,-500.0,0.00019178,2]
[315758779,1709166642373,-635.25741391,0.00019178,2]
[315758782,1709166642382,-500.0,0.00019178,2]
[315758784,1709166642392,-500.0,0.00019178,2]
[315758786,1709166642402,-700.19,0.00019178,2]
[315758788,1709166642412,-500.0,0.00019178,2]
[315758790,1709166642421,-500.0,0.00019178,2]
[315758792,1709166642431,-500.0,0.00019178,2]
[315758793,1709166642441,-151.0,0.00019178,2]
[315758795,1709166642453,-500.0,0.00019178,2]
[315758798,1709166642466,-538.55,0.00019178,2]
[315758800,1709166642476,-500.0,0.00019178,2]
[315758802,1709166642486,-500.0,0.00019178,2]
[315758804,1709166642496,-500.0,0.00019178,2]
[315758806,1709166642505,-1087.45,0.00019178,2]
[315758808,1709166642514,-799.89,0.00019178,2]
[315758810,1709166642524,-204.58207081,0.00019178,2]
[315758812,1709166642533,-500.0,0.00019178,2]
[315758813,1709166642543,-210.33764513,0.00019178,2]
[315758816,1709166642553,-500.0,0.00019178,2]
[315758817,1709166642563,-500.0,0.00019178,2]
[315758819,1709166642573,-500.0,0.00019178,2]
[315758821,1709166642583,-500.0,0.00019178,2]
[315758823,1709166642593,-784.93,0.00019178,2]
[315758825,1709166642603,-500.0,0.00019178,2]
[315758827,1709166642612,-804.81,0.00019178,2]
[315758829,1709166642622,-500.0,0.00019178,2]
[315758831,1709166642632,-500.0,0.00019178,2]
[315758834,1709166642642,-500.0,0.00019178,2]
[315758835,1709166642652,-500.0,0.00019178,2]
[315758850,1709166642789,-5813.88,0.00019178,2]
[315758852,1709166642799,-500.0,0.00019178,2]
[315758854,1709166642809,-500.0,0.00019178,2]
[315758856,1709166642818,-3600.71,0.00019178,2]
[315758858,1709166642828,-5787.31,0.00019178,2]
[315758860,1709166642838,-1292.02,0.00019178,2]
[315758862,1709166642847,-500.0,0.00019178,2]
[315758864,1709166642857,-500.0,0.00019178,2]
[315758865,1709166642866,-500.0,0.00019178,2]
[315758867,1709166642876,-588.81992835,0.00019178,2]
[315758869,1709166642886,-500.0,0.00019178,2]
[315758871,1709166642895,-489.45531375,0.00019178,2]
[315758873,1709166642904,-532.72803877,0.00019178,2]
[315758875,1709166642915,-500.0,0.00019178,2]
[315758877,1709166642925,-500.0,0.00019178,2]
[315758879,1709166642934,-500.0,0.00019178,2]
[315758881,1709166642944,-500.0,0.00019178,2]
[315758883,1709166642955,-500.0,0.00019178,2]
[315758885,1709166642964,-307.61163802,0.00019178,2]
[315758957,1709166643648,-192.38836198,0.00019178,2]
[315758959,1709166643659,-500.0,0.00019178,2]
[315758961,1709166643670,-500.0,0.00019178,2]
[315758963,1709166643681,-500.0,0.00019178,2]
[315758965,1709166643691,-894.64,0.00019178,2]
[315758967,1709166643703,-120.27385867,0.00019178,2]
[315758971,1709166643715,-402.86338597,0.00019178,2]
[315758974,1709166643727,-345.12869652,0.00019178,2]
[315759261,1709166646739,-665.12874872,0.00019178,2]
[315766251,1709167836182,-155.11633725,0.00018872,2]
[315766253,1709167836192,-155.11633725,0.00018872,2]
[315766254,1709167836202,-155.11633725,0.00018873,2]
[315766256,1709167836212,-215.01872483,0.000189,2]
[315766258,1709167836221,-13511.63512951,0.00018965,2]
[315766260,1709167836232,-14844.99280716,0.00018966,2]
[315766262,1709167836243,-3455.636018,0.00018966,2]
[315766332,1709167837819,-19420.39351856,0.00018966,2]
[315766334,1709167837828,-2182.77356788,0.00018987,2]
[315766335,1709167837837,-21064.55632406,0.00018987,2]
[315766337,1709167837849,-16656.46601966,0.00018987,2]
[315766339,1709167837862,-2182.77356788,0.00018988,2]
[315766341,1709167837897,-37721.02234372,0.00018994,2]
[315766343,1709167837906,-2182.77356788,0.00018999,2]
[315766344,1709167837916,-24229.56609515,0.00019,2]
[315766346,1709167837926,-183.90433986,0.00019,2]
[315766348,1709167837937,-8103.24855422,0.00019119,2]
[315766414,1709167843974,-38.36872827,0.00019119,2]
[315766416,1709167843983,-155.09305583,0.00019178,2]
[315766418,1709167843992,-151.0,0.00019178,2]
[315766420,1709167844001,-500.0,0.00019178,2]
[315766422,1709167844011,-500.0,0.00019178,2]
[315766423,1709167844020,-500.0,0.00019178,2]
[315766424,1709167844029,-500.0,0.00019178,2]
[315766427,1709167844038,-500.0,0.00019178,2]
[315766429,1709167844047,-500.0,0.00019178,2]
[315766431,1709167844056,-500.0,0.00019178,2]
[315766434,1709167844066,-500.0,0.00019178,2]
[315766437,1709167844077,-400.0,0.00019178,2]
[315766439,1709167844087,-501.00756366,0.00019178,2]
[315766440,1709167844096,-798.19,0.00019178,2]
[315766442,1709167844105,-500.0,0.00019178,2]
[315766443,1709167844114,-500.0,0.00019178,2]
[315766444,1709167844123,-381.9176512,0.00019178,2]
[315766446,1709167844133,-500.0,0.00019178,2]
[315766447,1709167844142,-500.0,0.00019178,2]
[315766449,1709167844151,-500.0,0.00019178,2]
[315766450,1709167844160,-500.0,0.00019178,2]
[315766452,1709167844169,-500.0,0.00019178,2]
[315766453,1709167844178,-500.0,0.00019178,2]
[315766454,1709167844189,-500.0,0.00019178,2]
[315766455,1709167844199,-503.92480919,0.00019178,2]
[315766456,1709167844208,-500.0,0.00019178,2]
[315766457,1709167844218,-151.0,0.00019178,2]
[315766458,1709167844228,-151.0,0.00019178,2]
[315766459,1709167844240,-500.0,0.00019178,2]
[315766460,1709167844250,-371.94647951,0.00019178,2]
[315766461,1709167844262,-128.05352049,0.00019178,2]
[315766462,1709167844272,-500.0,0.00019178,2]
[315766463,1709167844281,-516.11,0.00019178,2]
[315766465,1709167844291,-500.0,0.00019178,2]
[315766466,1709167844300,-461.83104042,0.00019178,2]
[315766468,1709167844311,-38.16895958,0.00019178,2]
[315766470,1709167844321,-500.0,0.00019178,2]
[315766472,1709167844331,-500.0,0.00019178,2]
[315766474,1709167844340,-500.0,0.00019178,2]
[315766476,1709167844351,-500.0,0.00019178,2]
[315766478,1709167844360,-500.0,0.00019178,2]
[315766480,1709167844369,-500.0,0.00019178,2]
[315766482,1709167844378,-752.23,0.00019178,2]
[315766484,1709167844387,-1411.18439857,0.00019178,2]
[315766486,1709167844399,-361.94461,0.00019178,2]
[315766807,1709167850426,-454.04099143,0.00019178,2]
[315766809,1709167850435,-851.75149717,0.00019178,2]
[315766835,1709168746535,2701.05892611,0.000125,2]
[315766896,1709169034752,-155.11168041,0.00018099,2]
[315766898,1709169034762,-155.11168041,0.000181,2]
[315766900,1709169034772,-134.82119889,0.00018153,2]
[315766955,1709169038030,-87.56713711,0.00018153,2]
[315766956,1709169038039,-171.69564625,0.000189,2]
[315766959,1709169038049,-183.90433986,0.00019,2]
[315766961,1709169038059,-310.07907669,0.00019078,2]
[315766962,1709169038069,-13511.63512951,0.00019177,2]
[315766965,1709169038079,-172.23853414,0.00019178,2]
[315766967,1709169038089,-500.0,0.00019178,2]
[315766968,1709169038098,-500.0,0.00019178,2]
[315766970,1709169038107,-500.0,0.00019178,2]
[315766972,1709169038117,-500.0,0.00019178,2]
[315766974,1709169038126,-500.0,0.00019178,2]
[315766977,1709169038136,-500.0,0.00019178,2]
[315766978,1709169038145,-500.0,0.00019178,2]
[315766979,1709169038154,-170.14112265,0.00019178,2]